[Event "44th Chess Olympiad Open 2022"]
[Site "Chennai"]
[Date "2022.07.31"]
[Round "3.9"]
[White "Kollars, Dmitrij"]
[Black "Horvath, Dominik"]
[Result "0-1"]
[WhiteElo "2648"]
[BlackElo "2488"]
[Annotator "RC"]
[PlyCount "112"]
[EventDate "2022.??.??"]
[TimeControl "60"]

1. e4 {[%emt 0:00:07]} e5 {[%emt 0:00:07]} 2. Nf3 {[%emt 0:00:10]} Nc6 {
[%emt 0:00:03]} 3. Bc4 {[%emt 0:00:21]} Nf6 {[%emt 0:00:04]} 4. d3 {[%emt 0:00:
00]} Bc5 {[%emt 0:00:05]} 5. c3 {[%emt 0:00:22]} O-O {[%emt 0:00:08]} 6. Nbd2 {
[%emt 0:01:51]} a5 {[%emt 0:05:15]} 7. O-O {[%emt 0:00:33]} d6 {[%emt 0:00:26]}
8. h3 {[%emt 0:00:51]} Ba7 {[%emt 0:00:50]} 9. Re1 {[%emt 0:01:03]} Be6 {
[%emt 0:00:05]} 10. Bb5 {[%emt 0:02:31]} Ne7 {[%emt 0:00:06]} 11. Nf1 {[%emt 0:
00:00]} c6 {[%emt 0:04:03]} 12. Ba4 {[%emt 0:00:06]} Ng6 {[%emt 0:00:05]} 13.
d4 {[%emt 0:03:43]} Nh5 {[%emt 0:05:02]} 14. Bc2 {[%emt 0:11:10]} Nhf4 {
[%emt 0:05:34]} 15. Ng3 {[%emt 0:01:15]} Qd7 {[%emt 0:00:12]} 16. Nf5 {[%emt 0:
00:00]} f6 {[%emt 0:05:13]} 17. Be3 {[%emt 0:09:17]} Rfd8 {[%emt 0:10:12]} 18.
Kh2 {[%emt 0:10:27]} Bf7 {[%emt 0:08:37]} 19. g3 {[%emt 0:06:31]} Ne6 {[%emt 0:
00:00]} 20. Qe2 {[%emt 0:00:47]} Qc7 {[%emt 0:06:19]} 21. Rad1 {[%emt 0:04:04]}
b5 {[%emt 0:06:37]} 22. d5 {[%emt 0:05:31]} Nc5 {[%emt 0:01:15]} 23. b4 {
[%emt 0:06:09]} Na4 {[%emt 0:07:03]} 24. Bxa4 {[%emt 0:02:06]} bxa4 {[%emt 0:
00:00]} 25. Bxa7 {[%emt 0:01:40]} Rxa7 {[%emt 0:04:47]} 26. Qe3 {[%emt 0:01:14]
} cxd5 {[%emt 0:00:52]} 27. exd5 {[%emt 0:00:04]} Rb7 {[%emt 0:00:16]} 28. a3 {
[%emt 0:01:02]} Rb5 {[%emt 0:04:01]} 29. Nd2 {[%emt 0:03:03]} axb4 {[%emt 0:00:
00]} 30. cxb4 {[%emt 0:01:24]} Qd7 {[%emt 0:04:29]} 31. Qf3 {[%emt 0:03:52]}
Bxd5 {[%emt 0:00:37]} 32. Ne4 {[%emt 0:00:27]} Bxe4 {[%emt 0:00:03]} 33. Qxe4 {
[%emt 0:03:28]} d5 {[%emt 0:00:13]} 34. Qg4 {[%emt 0:02:22]} d4 {[%emt 0:02:06]
} 35. h4 {[%emt 0:00:33]} Rd5 {[%emt 0:03:52]} 36. h5 {[%emt 0:08:01]} Nf8 {
[%emt 0:00:06]} 37. Qe4 {[%emt 0:00:07]} Qf7 {[%emt 0:02:32]} 38. Kg2 {[%emt 0:
00:00]} R5d7 {[%emt 0:01:06]} 39. f4 {[%emt 0:00:58]} exf4 {[%emt 0:04:12]} 40.
h6 {[%emt 0:02:04]} g5 {[%emt 0:09:08]} 41. gxf4 {[%emt 0:07:12]} Ng6 {[%emt 0:
00:00]} 42. fxg5 {[%emt 0:02:57]} fxg5 {[%emt 0:00:06]} 43. Kg1 {[%emt 0:03:13]
} d3 {[%emt 0:01:49]} 44. Rd2 {[%emt 0:01:50]} Rf8 {[%emt 0:02:50]} 45. Rf1 {
[%emt 0:05:47]} Nf4 {[%emt 0:02:23]} 46. Ng3 {[%emt 0:06:48]} Re7 {[%emt 0:00:
00]} 47. Qc6 {[%emt 0:03:00]} Re3 {[%emt 0:02:01]} 48. Rg2 {[%emt 0:01:14]} d2
{[%emt 0:02:25]} 49. Qc5 {[%emt 0:00:40]} Rxg3 {[%emt 0:08:22]} 50. Rxg3 {
[%emt 0:00:14]} Nh3+ {[%emt 0:00:03]} 51. Kh2 {[%emt 0:00:19]} Qxf1 {[%emt 0:
00:00]} 52. Qd5+ {[%emt 0:00:53]} Kh8 {[%emt 0:00:24]} 53. Qd4+ {[%emt 0:01:46]
} Qf6 {[%emt 0:00:05]} 54. Rd3 {[%emt 0:00:45]} Qxd4 {[%emt 0:01:32]} 55. Rxd4
{[%emt 0:00:02]} g4 {[%emt 0:02:14]} 56. Kg3 {[%emt 0:02:29]} Nf2 {[%emt 0:00:
00]} 0-1

[Event "44th Chess Olympiad Open 2022"]
[Site "Chennai"]
[Date "2022.07.31"]
[Round "3.9"]
[White "Ragger, Markus"]
[Black "Bluebaum, Matthias"]
[Result "1/2-1/2"]
[WhiteElo "2647"]
[BlackElo "2673"]
[Annotator "TA"]
[PlyCount "61"]
[EventDate "2022.??.??"]
[TimeControl "60"]

{[%evp 11,61,2,1,0,0,0,0,-10,-10,-10,-9,-11,-10,-10,-11,-13,-6,-9,0,0,0,0,0,0,
0,0,0,0,0,0,0,0,0,0,0,0,0,0,0,0,0,0,0,0,0,0,0,0,0,0,0,0]} 1. e4 {[%emt 0:00:02]
} c6 {[%emt 0:00:09]} 2. d4 {[%emt 0:00:02]} d5 {[%emt 0:00:04]} 3. e5 {
[%emt 0:00:05]} Bf5 {[%emt 0:00:10]} 4. h4 {[%emt 0:00:05]} h5 {[%emt 0:00:08]}
5. Bd3 {[%emt 0:00:18]} Bxd3 {[%emt 0:00:13]} 6. Qxd3 {[%emt 0:00:02]} e6 {
[%emt 0:00:17] The position is equal.} 7. Bg5 {[%emt 0:01:43] B12: Caro-Kann:
Advance Variation.} Qb6 {[%emt 0:00:12]} 8. Nd2 {[%emt 0:00:22] Active counter
play!} c5 {[%emt 0:00:33]} 9. c4 {[%emt 0:00:05]} Qxb2 {[%emt 0:00:09]} 10. Rd1
{[%emt 0:00:15] Black must now prevent cxd5.} Nc6 {[%emt 0:00:07][%cal Yb8c6,
Yc6b4,Yb4c2]} 11. Ne2 {[%emt 0:01:20] [#] cxd5 is the strong threat.} Nb4 {
[%emt 0:04:02]} 12. Qf3 {[%emt 0:01:00]} Nc2+ $1 {[%emt 0:00:37]} (12... cxd4
13. O-O $16 (13. Rb1 Qa3 $11)) 13. Kf1 {[%emt 0:00:02]} Nxd4 {[%emt 0:00:00]}
14. Nxd4 {[%emt 0:00:07]} Qxd4 {[%emt 0:00:26]} 15. Qb3 {[%emt 0:03:40][%cal
Rb3b5] [#]} Be7 {[%emt 0:02:06] And now ...Bxg5 would win.} 16. cxd5 {[%emt 0:
00:27]} ({Of course not} 16. Qxb7 Rd8 17. cxd5 Qxd5 18. Qxd5 exd5 $17) 16...
exd5 {[%emt 0:01:02]} (16... Bxg5 $2 17. Nc4 (17. dxe6 O-O-O $11) 17... Qg4 18.
f3 $18 (18. hxg5 Kf8 $18)) 17. Qxb7 {[%emt 0:01:03]} Rd8 {[%emt 0:00:00]} 18.
Re1 {[%emt 0:02:23][%cal Yd1e1,Ye1b1,Yb1b8] [#]} Qb4 $146 {[%emt 0:02:59]} ({
Predecessor:} 18... Bxg5 19. hxg5 Ne7 20. e6 fxe6 21. Nf3 Qc4+ 22. Kg1 d4 23.
Rh4 Qd5 24. Qb5+ Nc6 {½-½ (32) Caron,S (2411)-Latronico, N (2439) ICCF email
2021}) 19. Qxa7 {[%emt 0:06:58]} Rh6 {[%emt 0:00:10]} 20. Rb1 {[%emt 0:13:13]}
Qd4 {[%emt 0:06:12]} 21. Kg1 {[%emt 0:05:44]} Re6 {[%emt 0:14:49] Hoping for ..
.Bxg5.} 22. Nf3 {[%emt 0:22:48]} Qc4 {[%emt 0:00:00]} 23. Rb8 {[%emt 0:07:45]
Threatens to win with Rh3.} Bxg5 $1 {[%emt 0:00:00]} 24. Nxg5 {[%emt 0:07:28]
[%csl Gg5][%cal Ra7f7]} Qc1+ {[%emt 0:02:18]} 25. Kh2 {[%emt 0:00:18][%csl Gg5]
[%cal Ra7f7]} Qf4+ {[%emt 0:00:04]} 26. Kg1 {[%emt 0:00:35]} Qc1+ {[%emt 0:02:
52]} 27. Kh2 {[%emt 0:00:10][%csl Gg5][%cal Ra7f7] The board is on fire.} Qf4+
{[%emt 0:00:04]} 28. Kg1 {[%emt 0:00:07]} Qc1+ {[%emt 0:00:03]} 29. Kh2 {
[%emt 0:00:04][%csl Gg5][%cal Ra7f7]} Qf4+ {[%emt 0:00:03]} 30. Kg1 {[%emt 0:
00:06]} Qc1+ {[%emt 0:00:03]} 31. Kh2 {[%emt 0:00:40] An even fight not
without its subleties. Weighted Error Value: White=0.01 (flawless) /Black=0.00
(flawless)} 1/2-1/2

[Event "44th Chess Olympiad Open 2022"]
[Site "Chennai"]
[Date "2022.07.31"]
[Round "3.9"]
[White "Blohberger, Felix"]
[Black "Nisipeanu, Liviu-Dieter"]
[Result "1-0"]
[WhiteElo "2492"]
[BlackElo "2642"]
[Annotator "RC"]
[PlyCount "61"]
[EventDate "2022.??.??"]
[TimeControl "60"]

1. e4 {[%emt 0:00:04]} c6 {[%emt 0:00:06]} 2. d4 {[%emt 0:00:05]} d5 {[%emt 0:
00:00]} 3. e5 {[%emt 0:00:03]} Bf5 {[%emt 0:00:06]} 4. h4 {[%emt 0:00:06]} h6 {
[%emt 0:01:26]} 5. Bd3 {[%emt 0:00:06]} Bxd3 {[%emt 0:00:48]} 6. Qxd3 {[%emt 0:
00:00]} e6 {[%emt 0:00:04]} 7. Nd2 {[%emt 0:09:43]} c5 {[%emt 0:08:08]} 8. c3 {
[%emt 0:01:31]} Ne7 {[%emt 0:20:21]} 9. Ne2 {[%emt 0:01:04]} Nec6 {[%emt 0:00:
00]} 10. Nf3 {[%emt 0:00:29]} cxd4 {[%emt 0:00:32]} 11. cxd4 {[%emt 0:01:20]}
Qa5+ {[%emt 0:00:21]} 12. Kf1 {[%emt 0:01:53]} Qa6 {[%emt 0:00:53]} 13. Qd1 {
[%emt 0:03:02]} Nd7 {[%emt 0:01:58]} 14. Kg1 {[%emt 0:02:10]} Be7 {[%emt 0:00:
00]} 15. h5 {[%emt 0:24:53]} O-O-O {[%emt 0:01:42]} 16. Rh3 {[%emt 0:00:00]}
Kb8 {[%emt 0:03:21]} 17. Rg3 {[%emt 0:01:28]} Rhg8 {[%emt 0:00:29]} 18. Be3 {
[%emt 0:08:16]} Rc8 {[%emt 0:00:32]} 19. Nf4 {[%emt 0:09:43]} Nb6 {[%emt 0:00:
00]} 20. Qb1 {[%emt 0:02:22]} Nb4 {[%emt 0:06:14]} 21. Qh7 {[%emt 0:05:08]} Nc2
{[%emt 0:04:29]} 22. Rc1 {[%emt 0:04:51]} Nxe3 {[%emt 0:06:56]} 23. Rxc8+ {
[%emt 0:01:29]} Rxc8 {[%emt 0:00:06]} 24. fxe3 {[%emt 0:00:10]} Bf8 {[%emt 0:
00:00]} 25. Qg8 {[%emt 0:01:58]} Nc4 {[%emt 0:00:12]} 26. Qxf7 {[%emt 0:02:08]}
Nxe3 {[%emt 0:00:05]} 27. Nxe6 {[%emt 0:00:46]} Qf1+ {[%emt 0:11:14]} 28. Kh2 {
[%emt 0:00:08]} a6 {[%emt 0:00:30]} 29. Nxf8 {[%emt 0:03:46]} Rc2 {[%emt 0:00:
00]} 30. Nd7+ {[%emt 0:01:40]} Ka7 {[%emt 0:00:05]} 31. Qg6 {[%emt 0:00:23]}
1-0

[Event "44th Chess Olympiad Open 2022"]
[Site "Chennai"]
[Date "2022.07.31"]
[Round "3.10"]
[White "Adams, Michael"]
[Black "Laurusas, Tomas"]
[Result "1/2-1/2"]
[WhiteElo "2696"]
[BlackElo "2561"]
[Annotator "TA"]
[PlyCount "74"]
[EventDate "2022.??.??"]
[TimeControl "60"]

{[%evp 18,74,31,33,35,21,16,14,20,12,29,0,0,0,0,0,10,5,7,10,8,0,0,0,0,0,10,16,
31,31,52,50,48,41,49,54,62,56,96,62,52,56,58,60,92,0,14,28,43,0,0,0,5,0,0,
-29997,-748,-673,-60]} 1. e4 {[%emt 0:00:04]} e5 {[%emt 0:00:09]} 2. Nf3 {
[%emt 0:00:07]} Nf6 {[%emt 0:00:10][%cal Yg8f6,Yf6e4,Ye4d2]} 3. Nxe5 {[%emt 0:
00:07]} d6 {[%emt 0:00:06]} 4. Nf3 {[%emt 0:00:04]} Nxe4 {[%emt 0:00:00]} 5. d4
{[%emt 0:00:05]} d5 {[%emt 0:00:10]} 6. Bd3 {[%emt 0:00:06]} Nc6 {[%emt 0:00:
19]} 7. O-O {[%emt 0:00:40]} Be7 {[%emt 0:00:10]} 8. Nbd2 {[%emt 0:00:00]} Nxd2
{[%emt 0:00:24]} 9. Bxd2 {[%emt 0:01:47][%cal Yc1d2,Yd2f4,Yf4g3]} Bg4 {[%emt 0:
00:07]} 10. c3 {[%emt 0:00:50]} O-O {[%emt 0:12:26] C42: Petroff Defence: 3
Nxe5 and unusual White 3rd moves.} 11. Bf4 {[%emt 0:00:00]} Bd6 {[%emt 0:08:28]
} 12. Bg3 {[%emt 0:00:11]} Qf6 {[%emt 0:10:37] The position is equal.} 13. Re1
{[%emt 0:00:28]} Rae8 {[%emt 0:22:37]} 14. Rxe8 {[%emt 0:16:00]} (14. Bxd6 {
is interesting.} Rxe1+ 15. Qxe1 Qxd6 16. Nh4) 14... Rxe8 {[%emt 0:00:12]} 15.
Bxd6 {[%emt 0:00:09]} Bxf3 {[%emt 0:00:15]} 16. Qxf3 {[%emt 0:00:08]} Qxd6 {
[%emt 0:01:45] [#]} 17. h4 $146 {[%emt 0:00:34]} ({Predecessor:} 17. a4 g6 18.
a5 a6 19. g3 Qd7 {½-½ (20) Mannermaa,J (2495) -Matheis,T (2414) ICCF email
2009}) 17... Nb8 {[%emt 0:14:16]} 18. g3 {[%emt 0:00:00]} c6 {[%emt 0:02:43]}
19. c4 {[%emt 0:09:13]} Nd7 {[%emt 0:00:05]} 20. cxd5 {[%emt 0:03:10]} cxd5 {
[%emt 0:00:07]} ({But not} 20... Qxd5 21. Qxd5 cxd5 22. Bb5 $16) 21. Rc1 {
[%emt 0:02:18]} Nf6 {[%emt 0:03:10]} 22. Bb5 {[%emt 0:00:00]} Rf8 {[%emt 0:00:
44]} 23. Qa3 {[%emt 0:04:47] Against Qb4} Qb6 {[%emt 0:00:00]} 24. Qc5 {
[%emt 0:01:40]} Qa5 {[%emt 0:00:01]} 25. a4 {[%emt 0:02:34][%cal Ya2a4,Ya4a5]}
Qd2 {[%emt 0:05:07]} 26. Qc3 {[%emt 0:03:59]} Qh6 {[%emt 0:00:07]} 27. Bd3 {
[%emt 0:05:33]} Qh5 {[%emt 0:05:05]} 28. Kg2 {[%emt 0:00:00] White is more
active.} Qg4 {[%emt 0:00:50]} 29. a5 {[%emt 0:02:48]} g6 {[%emt 0:00:59]} 30.
Re1 {[%emt 0:06:09]} Rc8 {[%emt 0:05:06][%cal Yf8c8,Yc8c2,Yc2b2]} 31. Qb3 {
[%emt 0:00:34]} (31. Qb4 $16) 31... Nh5 {[%emt 0:00:00]} 32. Bf1 {[%emt 0:00:
27]} Qxd4 {[%emt 0:00:56]} 33. Qxb7 {[%emt 0:00:15]} Rc2 {[%emt 0:00:51][%csl
Yb2,Yf2]} 34. Qb8+ {[%emt 0:02:38]} Kg7 $132 {[%emt 0:00:01] Black is not
keeping still} 35. Qe5+ {[%emt 0:00:06]} Qxe5 {[%emt 0:00:04]} 36. Re4 $2 {
[%emt 0:00:01] [#]} (36. Rxe5 $11 Rxb2 37. Rxd5 (37. Re7 Nf6 $15)) 36... Qf4
37. Rxf4 $19 {[%emt 0:00:31]} Rxb2 $2 {[%emt 0:04:44] Weighted Error Value:
White=0.32/Black=0.35} (37... Nxf4+ $19 38. gxf4 Rxb2) 1/2-1/2

[Event "44th Chess Olympiad Open 2022"]
[Site "Chennai"]
[Date "2022.07.31"]
[Round "3.10"]
[White "Howell, David W L"]
[Black "Juksta, Karolis"]
[Result "1-0"]
[WhiteElo "2650"]
[BlackElo "2412"]
[Annotator "TA"]
[PlyCount "65"]
[EventDate "2022.??.??"]
[TimeControl "60"]

{[%evp 12,65,27,27,30,31,29,20,33,27,32,28,33,29,37,30,24,35,26,29,35,33,27,38,
26,41,38,35,43,35,42,36,43,11,8,0,56,56,65,69,63,24,37,29,266,258,331,334,331,
335,335,331,495,489,443,389]} 1. e4 {[%emt 0:00:22]} e6 {[%emt 0:00:09]} 2. d4
{[%emt 0:01:00]} d5 {[%emt 0:00:08]} 3. Nd2 {[%emt 0:01:07]} c5 {[%emt 0:00:09]
} 4. Ngf3 {[%emt 0:00:45]} Nc6 {[%emt 0:00:10]} 5. exd5 {[%emt 0:00:44]} exd5 {
[%emt 0:00:08]} 6. Bb5 {[%emt 0:01:25]} Qe7+ {[%emt 0:00:14] outshines the
older 6...Bd6.} 7. Be2 {[%emt 0:02:12]} Qc7 {[%emt 0:00:22] C09: French
Tarrasch: 3...c5 4 exd5 exd5 5 Ngf3 Nc6.} 8. O-O {[%emt 0:00:57]} Nf6 {[%emt 0:
00:00]} 9. Re1 {[%emt 0:01:21]} Be6 {[%emt 0:01:09] The position is equal.} 10.
Bb5 {[%emt 0:02:00]} Bd6 {[%emt 0:19:39] [#]} 11. Nb3 $146 {[%emt 0:00:58]} ({
Predecessor:} 11. dxc5 Bxc5 12. Nb3 Bb6 13. c4 dxc4 14. Bxc4 O-O 15. Bxe6 fxe6
16. Qe2 e5 17. Be3 Bxe3 {½-½ (30) Safarli,E (2608)-Nikolaidis,I (2545)
Patras 2019}) 11... c4 {[%emt 0:08:40]} 12. Nc5 {[%emt 0:00:25]} Bxc5 {[%emt 0:
00:00]} 13. dxc5 {[%emt 0:00:23]} O-O {[%emt 0:00:10]} 14. Bxc6 {[%emt 0:00:06]
} (14. b3 {keeps more tension.} Ne4 15. bxc4 Rad8 16. Qe2) 14... Qxc6 {[%emt 0:
00:00]} 15. Nd4 {[%emt 0:01:04]} Qxc5 {[%emt 0:01:02]} 16. Rxe6 {[%emt 0:00:13]
} fxe6 {[%emt 0:00:20]} 17. Nxe6 {[%emt 0:00:08]} Qb6 {[%emt 0:04:10]} 18. Nxf8
{[%emt 0:00:11]} Rxf8 {[%emt 0:00:05]} 19. Be3 {[%emt 0:00:06][%cal Yc1e3,
Ye3a7,Ya7d4]} Qxb2 {[%emt 0:06:13]} 20. Bxa7 {[%emt 0:00:38]} Qb5 {[%emt 0:14:
32]} 21. Bd4 {[%emt 0:31:21]} Qd7 {[%emt 0:00:54]} 22. Qe1 {[%emt 0:00:00]} Ne4
{[%emt 0:08:55]} 23. Qa5 {[%emt 0:08:28]} Qf7 {[%emt 0:05:13]} (23... Ng5 $11)
24. f3 $14 {[%emt 0:25:23]} Ng5 {[%emt 0:00:31][%cal Yg5f3]} 25. Re1 {[%emt 0:
00:08]} h6 {[%emt 0:08:03]} 26. c3 {[%emt 0:07:11] White is more active.} Kh7 {
[%emt 0:04:14]} 27. Qb5 {[%emt 0:00:12]} Ra8 $2 {[%emt 0:09:05] [#] A mistake
that costs the game.} (27... Qg6 $11 28. Kh1 Ne6) 28. h4 $1 $18 {[%emt 0:02:51]
} Nxf3+ {[%emt 0:02:05]} 29. gxf3 {[%emt 0:00:06]} Qxf3 {[%emt 0:00:00] ( -> ..
.Qg3+)} (29... Qg6+ $2 30. Kh1 Qg3 31. Qb1+ Kg8 32. Re2 Qxf3+ 33. Rg2) 30. Qb1+
{[%emt 0:01:35]} (30. Qxb7 Qg3+ 31. Kh1 Qxe1+ 32. Kh2 Rxa2+) 30... Qd3 {
[%emt 0:01:23]} 31. h5 {[%emt 0:03:22] aiming for Rd1.} b5 {[%emt 0:00:00]} (
31... Kg8 {might work better.} 32. Qxd3 (32. Qxb7 {gets mated.} Qg3+ 33. Kh1
Qxe1+ 34. Bg1 Qe4+ 35. Kh2 Qh4+ 36. Kg2 Rxa2+) 32... cxd3) 32. Qxd3+ {[%emt 0:
00:31]} cxd3 {[%emt 0:00:06]} 33. Re7 {[%emt 0:00:31] Weighted Error Value:
White=0.03 (flawless) /Black=0.40} 1-0

[Event "44th Chess Olympiad Open 2022"]
[Site "Chennai"]
[Date "2022.07.31"]
[Round "3.10"]
[White "Pultinevicius, Paulius"]
[Black "Jones, Gawain C B"]
[Result "1/2-1/2"]
[WhiteElo "2539"]
[BlackElo "2652"]
[Annotator "TA"]
[PlyCount "80"]
[EventDate "2022.??.??"]
[TimeControl "60"]

{[%evp 9,80,18,17,22,23,16,27,0,22,11,15,12,17,0,0,0,43,19,13,19,42,0,6,0,16,
18,10,0,12,0,10,24,22,13,42,11,57,0,11,0,0,0,0,0,0,0,8,0,0,-13,-5,0,0,0,0,0,0,
0,0,0,0,0,0,0,0,0,0,0,0,0,0,0,0]} 1. d4 {[%emt 0:00:02]} Nf6 {[%emt 0:00:41]}
2. c4 {[%emt 0:00:05]} e6 {[%emt 0:00:12]} 3. g3 {[%emt 0:01:19]} d5 {[%emt 0:
00:00][%cal Yd7d5,Yd5c4]} 4. Nf3 {[%emt 0:00:13]} dxc4 {[%emt 0:00:24]} 5. Bg2
{[%emt 0:01:19]} c6 {[%emt 0:00:35]} 6. a4 {[%emt 0:04:41] E04: Open Catalan:
5 Nf3.} Bb4+ {[%emt 0:01:12]} 7. Bd2 {[%emt 0:06:23]} a5 {[%emt 0:00:00]} 8.
Qc2 {[%emt 0:19:22] White has an edge.} O-O {[%emt 0:00:29]} 9. Qxc4 {[%emt 0:
04:22]} Bxd2+ {[%emt 0:00:56]} 10. Nbxd2 {[%emt 0:00:49]} b6 {[%emt 0:00:00]}
11. Qc2 {[%emt 0:02:41]} Bb7 {[%emt 0:01:29]} 12. O-O {[%emt 0:01:21][%cal
Yh1f1,Yf1d1,Yd1d4] [#]} Nbd7 $146 {[%emt 0:09:25]} ({Predecessor:} 12... Na6
13. Nc4 Nb4 14. Qd2 Rc8 15. Rfd1 Qc7 16. Rac1 Na2 17. Ra1 Nb4 18. Rac1 Na2 19.
Ra1 {½-½ (19) Sargsyan,S (2618)-Ter Sahakyan,S (2644) Jermuk 2021}) 13. Rfd1
{[%emt 0:05:13]} c5 {[%emt 0:07:01]} 14. Nc4 {[%emt 0:00:50]} cxd4 {[%emt 0:08:
45]} 15. Rxd4 {[%emt 0:02:21]} (15. Nxd4 $5 {[%cal Rg2b7]} Bxg2 16. Kxg2 $14)
15... Qc7 {[%emt 0:04:07]} 16. b3 {[%emt 0:00:00]} Nc5 {[%emt 0:08:30]} 17. Rc1
{[%emt 0:02:10][%cal Yc4b6] Nxb6! is the strong threat.} (17. Ne1 {is more
complex.} Bxg2 18. Kxg2 Rfd8 19. Rxd8+ Rxd8 20. Rc1) 17... Be4 {[%emt 0:02:26]}
18. Qb2 {[%emt 0:00:42]} Rad8 {[%emt 0:00:00]} 19. Qa3 {[%emt 0:04:29][%cal
Yc4b6]} Rxd4 {[%emt 0:14:50]} 20. Nxd4 {[%emt 0:00:05][%cal Yc4b6]} Bxg2 {
[%emt 0:01:37]} 21. Kxg2 {[%emt 0:00:05][%cal Yc4b6] With the idea Nxb6!} Qd8 {
[%emt 0:02:04]} 22. Nf3 {[%emt 0:03:24][%cal Yc4a5] Black must now prevent
Nxa5!} (22. Nb5 $5 {[%cal Rc4b6]}) 22... Nce4 {[%emt 0:03:10]} (22... Nfd7 $11)
23. Nce5 {[%emt 0:14:46]} (23. Nfe5 $14) 23... Nd5 $11 {[%emt 0:03:09] The
position is equal.} 24. Nc6 {[%emt 0:04:57]} Qa8 {[%emt 0:01:58]} 25. Ne7+ {
[%emt 0:03:18]} Nxe7 {[%emt 0:00:20]} 26. Qxe7 {[%emt 0:00:05]} Nc5 {[%emt 0:
04:54]} 27. Qc7 {[%emt 0:02:09]} Qd8 {[%emt 0:00:00]} 28. Qxd8 {[%emt 0:00:21]}
(28. Qc6 {is interesting.} Qb8 29. Qb5 h6 30. Nd2) 28... Rxd8 {[%emt 0:00:04]
Endgame KRN-KRN} 29. Rb1 {[%emt 0:00:00]} f6 {[%emt 0:00:31]} 30. Kf1 {[%emt 0:
00:43]} Kf7 {[%emt 0:08:41]} 31. b4 {[%emt 0:00:17]} Nxa4 {[%emt 0:01:13] And
now ...Nc3 would win.} 32. bxa5 {[%emt 0:00:05]} bxa5 {[%emt 0:00:06]} 33. Ra1
{[%emt 0:00:10]} Nc3 {[%emt 0:00:00] Hoping for ...a4.} 34. Rxa5 {[%emt 0:00:
04]} Rd1+ {[%emt 0:00:04]} 35. Ne1 {[%emt 0:01:46]} Rd2 {[%emt 0:04:11]} 36.
Ra7+ {[%emt 0:00:05]} Kg6 {[%emt 0:00:00]} 37. Re7 {[%emt 0:00:46]} Rxe2 {
[%emt 0:02:09]} 38. Rc7 {[%emt 0:00:05]} Nd5 {[%emt 0:00:05] [#] Strongly
threatening ...Rxe1+.} 39. Rxg7+ $1 {[%emt 0:00:00]} Kxg7 {[%emt 0:00:06]} 40.
Kxe2 {[%emt 0:00:04]} e5 {[%emt 0:02:09] Weighted Error Value: White=0.08 
(flawless) /Black=0.07 (flawless)} 1/2-1/2

[Event "44th Chess Olympiad Open 2022"]
[Site "Chennai"]
[Date "2022.07.31"]
[Round "3.10"]
[White "Stremavicius, Titas"]
[Black "McShane, Luke J"]
[Result "1/2-1/2"]
[WhiteElo "2532"]
[BlackElo "2649"]
[Annotator "RC"]
[PlyCount "108"]
[EventDate "2022.??.??"]
[TimeControl "60"]

1. c4 {[%emt 0:00:06]} e5 {[%emt 0:00:10]} 2. Nc3 {[%emt 0:00:07]} Nf6 {
[%emt 0:00:06]} 3. Nf3 {[%emt 0:00:14]} Nc6 {[%emt 0:00:06]} 4. e3 {[%emt 0:00:
00]} Be7 {[%emt 0:00:31]} 5. a3 {[%emt 0:01:49]} O-O {[%emt 0:00:12]} 6. b4 {
[%emt 0:00:20]} d5 {[%emt 0:12:16]} 7. cxd5 {[%emt 0:13:47]} Nxd5 {[%emt 0:00:
00]} 8. Qc2 {[%emt 0:00:20]} Nxc3 {[%emt 0:13:32]} 9. dxc3 {[%emt 0:00:14]} Qd6
{[%emt 0:00:28]} 10. Bb2 {[%emt 0:06:13]} Qg6 {[%emt 0:14:23]} 11. Qxg6 {
[%emt 0:06:46]} hxg6 {[%emt 0:00:10]} 12. Bd3 {[%emt 0:20:11]} Be6 {[%emt 0:00:
00]} 13. O-O-O {[%emt 0:15:52]} g5 {[%emt 0:05:01]} 14. Be4 {[%emt 0:04:10]} f6
{[%emt 0:01:09]} 15. h3 {[%emt 0:04:08]} a5 {[%emt 0:06:17]} 16. Bd5 {[%emt 0:
00:00]} Kf7 {[%emt 0:01:01]} 17. e4 {[%emt 0:06:10]} Nd8 {[%emt 0:01:53]} 18.
h4 {[%emt 0:02:05]} Bxd5 {[%emt 0:04:14]} 19. Rxd5 {[%emt 0:03:19]} Rh8 {
[%emt 0:01:15]} 20. Rdd1 {[%emt 0:04:53]} gxh4 {[%emt 0:01:38]} 21. Rxh4 {
[%emt 0:00:16]} Ne6 {[%emt 0:00:54]} 22. Rxh8 {[%emt 0:00:35]} Rxh8 {[%emt 0:
00:00]} 23. Kc2 {[%emt 0:01:22]} Bd6 {[%emt 0:03:02]} 24. Bc1 {[%emt 0:00:48]}
Ke7 {[%emt 0:00:26]} 25. Kb3 {[%emt 0:02:12]} b5 {[%emt 0:00:51]} 26. g3 {
[%emt 0:00:11]} g5 {[%emt 0:00:51]} 27. Be3 {[%emt 0:00:30]} c5 {[%emt 0:03:28]
} 28. Ra1 {[%emt 0:02:30]} Ra8 {[%emt 0:02:24]} 29. Rh1 {[%emt 0:00:05]} axb4 {
[%emt 0:00:15]} 30. Rh7+ {[%emt 0:00:09]} Ke8 {[%emt 0:00:06]} 31. axb4 {
[%emt 0:01:43]} cxb4 {[%emt 0:00:04]} 32. cxb4 {[%emt 0:00:35]} Ra4 {[%emt 0:
00:00]} 33. Bd2 {[%emt 0:00:06]} g4 {[%emt 0:00:14]} 34. Nh2 {[%emt 0:01:13]}
Nd4+ {[%emt 0:00:18]} 35. Kb2 {[%emt 0:00:06]} Bxb4 {[%emt 0:00:30]} 36. Bxb4 {
[%emt 0:00:10]} Rxb4+ {[%emt 0:00:04]} 37. Ka2 {[%emt 0:02:06]} Ra4+ {[%emt 0:
00:00]} 38. Kb2 {[%emt 0:00:02]} Rb4+ {[%emt 0:00:05]} 39. Ka2 {[%emt 0:00:05]}
Ne2 {[%emt 0:03:08]} 40. Nxg4 {[%emt 0:00:06]} Nc3+ {[%emt 0:00:24]} 41. Ka3 {
[%emt 0:30:07]} Ra4+ {[%emt 0:04:48]} 42. Kb2 {[%emt 0:00:00]} Nxe4 {[%emt 0:
00:00]} 43. f3 {[%emt 0:00:00]} Nxg3 {[%emt 0:02:18]} 44. Nxf6+ {[%emt 0:00:00]
} Kd8 {[%emt 0:00:34]} 45. Rd7+ {[%emt 0:00:00]} Kc8 {[%emt 0:00:07]} 46. Rd5 {
[%emt 0:00:00]} Rf4 {[%emt 0:01:26]} 47. Ne4 {[%emt 0:00:00]} Nxe4 {[%emt 0:00:
00]} 48. fxe4 {[%emt 0:00:00]} Rxe4 {[%emt 0:00:06]} 49. Rxb5 {[%emt 0:00:00]}
Kd7 {[%emt 0:00:06]} 50. Kc3 {[%emt 0:00:00]} Ke6 {[%emt 0:00:44]} 51. Kd3 {
[%emt 0:00:00]} Kf5 {[%emt 0:00:56]} 52. Rb8 {[%emt 0:00:00]} Rd4+ {[%emt 0:00:
00]} 53. Ke3 {[%emt 0:00:00]} Re4+ {[%emt 0:00:04]} 54. Kd3 {[%emt 0:00:00]}
Rd4+ {[%emt 0:01:38]} 1/2-1/2